fUST/lending_fUST_20250910
["ID","MTS","AMOUNT","RATE_DAILY","PERIOD"]
[384673017,1757508655851,-151.0,0.00020327,2]
[384673019,1757508655860,-151.0,0.00020327,2]
[384673021,1757508655869,-12527.65291967,0.00020327,2]
[384673023,1757508655878,-1000.0,0.00020402,2]
[384673025,1757508655887,-500.0,0.00020429,2]
[384673028,1757508655896,-500.2389297,0.00020429,2]
[384673030,1757508655906,-500.0,0.00020429,2]
[384673032,1757508655915,-500.0,0.00020429,2]
[384673033,1757508655924,-500.5717242,0.00020429,2]
[384673036,1757508655934,-500.0,0.00020429,2]
[384673037,1757508655943,-9815.29,0.00020434,2]
[384673039,1757508655953,-1709.91,0.00020434,2]
[384673042,1757508655963,-616.08,0.00020434,2]
[384673044,1757508655972,-480.0,0.00020434,2]
[384673045,1757508655981,-640.2,0.00020434,2]
[384673048,1757508655991,-151.0,0.00020434,2]
[384673050,1757508656001,-347.158529,0.00020434,2]
[384673052,1757508656010,-347.158529,0.00020434,2]
[384673054,1757508656019,-347.158529,0.00020434,2]
[384673056,1757508656029,-347.158525,0.00020434,2]
[384673058,1757508656038,-227.057574,0.00020434,2]
[384673060,1757508656047,-151.0,0.00020434,2]
[384673062,1757508656056,-1737.06,0.00020434,2]
[384673064,1757508656065,-3730.41,0.00020434,2]
[384673066,1757508656074,-211.78,0.00020434,2]
[384673067,1757508656083,-742.16,0.00020434,2]
[384673069,1757508656093,-480.0,0.00020434,2]
[384673071,1757508656102,-1629.64,0.00020434,2]
[384673073,1757508656112,-1152.0,0.00020441,2]
[384673074,1757508656121,-151.0,0.00020465,2]
[384673076,1757508656130,-151.0,0.00020465,2]
[384673078,1757508656140,-151.0,0.00020465,2]
[384673080,1757508656149,-151.0,0.00020465,2]
[384673081,1757508656158,-151.0,0.00020465,2]
[384673083,1757508656168,-449.999745,0.00020465,2]
[384673085,1757508656177,-449.999745,0.00020465,2]
[384673087,1757508656188,-151.0,0.00020465,2]
[384673089,1757508656200,-449.999745,0.00020465,2]
[384673090,1757508656210,-449.999745,0.00020465,2]
[384673092,1757508656219,-3892.7721397,0.0002049,2]
[384673094,1757508656229,-565.88,0.00020495,2]
[384673096,1757508656239,-486.54,0.00020495,2]
[384673097,1757508656249,-500.94,0.00020495,2]
[384673099,1757508656258,-1236.29,0.00020495,2]
[384673101,1757508656267,-500.0,0.00020525,2]
[384673103,1757508656277,-500.0,0.00020525,2]
[384673105,1757508656286,-500.0,0.00020525,2]
[384673107,1757508656296,-480.0,0.00020549,2]
[384673108,1757508656305,-1279.46,0.00020549,2]
[384673110,1757508656316,-374.540138,0.00020549,2]
[384673112,1757508656325,-374.540138,0.00020549,2]
[384673114,1757508656335,-374.540138,0.00020549,2]
[384673115,1757508656345,-374.5401371,0.00020549,2]
[384673117,1757508656355,-226.219108,0.00020549,2]
[384673119,1757508656365,-226.219108,0.00020549,2]
[384673121,1757508656374,-226.219108,0.00020549,2]
[384673123,1757508656384,-226.219112,0.00020549,2]
[384673124,1757508656394,-386.446255,0.00020549,2]
[384673126,1757508656404,-157.0,0.00020557,2]
[384673128,1757508656414,-333.538554,0.00020557,2]
[384673130,1757508656424,-333.538554,0.00020557,2]
[384673131,1757508656435,-333.538554,0.00020557,2]
[384673133,1757508656448,-333.538554,0.00020557,2]
[384673140,1757508656522,-151.0,0.00020557,2]
[384673142,1757508656532,-500.0,0.00020557,2]
[384673144,1757508656542,-500.0,0.00020557,2]
[384673146,1757508656551,-157.0,0.00020557,2]
[384673147,1757508656560,-151.0,0.00020567,2]
[384673149,1757508656570,-151.0,0.00020567,2]
[384673151,1757508656579,-151.0,0.00020567,2]
[384673153,1757508656588,-151.0,0.00020567,2]
[384673154,1757508656598,-151.0,0.000206,3]
[384673156,1757508656608,-1000.0,0.00020602,2]
[384673158,1757508656617,-1000.0,0.00020602,2]
[384673160,1757508656626,-1000.0,0.00020602,2]
[384673162,1757508656635,-500.7152998,0.00020602,2]
[384673164,1757508656645,-1000.0,0.00020602,2]
[384673165,1757508656655,-1000.0,0.00020602,2]
[384673167,1757508656664,-1000.0,0.00020606,2]
[384673169,1757508656673,-660.0,0.00020615,2]
[384673171,1757508656683,-3000.0,0.00020616,2]
[384673173,1757508656697,-1000.0,0.00020676,2]
[384673175,1757508656706,-1000.0,0.00020676,2]
[384673176,1757508656715,-500.0,0.00020676,2]
[384673178,1757508656725,-1000.0,0.00020676,2]
[384673180,1757508656735,-1000.0,0.00020676,2]
[384673182,1757508656744,-1000.0,0.00020702,2]
[384673184,1757508656754,-1000.0,0.00020702,2]
[384673186,1757508656763,-151.0,0.00020702,2]
[384673187,1757508656773,-193.921188,0.00020702,2]
[384673189,1757508656782,-193.921188,0.00020702,2]
[384673191,1757508656791,-193.921188,0.00020702,2]
[384673193,1757508656801,-193.921188,0.00020702,2]
[384673195,1757508656810,-151.0,0.00020702,2]
[384673197,1757508656819,-151.0,0.00020702,2]
[384673199,1757508656829,-151.0,0.00020702,2]
[384673200,1757508656841,-434.759775,0.00020702,2]
[384673202,1757508656850,-434.759775,0.00020702,2]
[384673204,1757508656860,-434.759775,0.00020702,2]
[384673206,1757508656869,-434.759775,0.00020702,2]
[384673208,1757508656878,-151.0,0.00020702,2]
[384673210,1757508656887,-151.0,0.00020702,2]
[384673212,1757508656896,-212.614112,0.00020702,2]
[384673213,1757508656907,-151.0,0.00020702,2]
[384673215,1757508656916,-151.0,0.00020702,2]
[384673217,1757508656925,-211.783438,0.00020702,2]
[384673219,1757508656935,-211.783438,0.00020702,2]
[384673221,1757508656946,-211.783438,0.00020702,2]
[384673223,1757508656955,-211.783438,0.00020702,2]
[384673225,1757508656964,-1952.3532116,0.00020708,2]
[384673228,1757508656984,-386.446255,0.00018242,2]
[384673229,1757508656994,-7862.9367884,0.00020708,2]
[384673231,1757508657003,-1709.91,0.00020708,2]
[384673233,1757508657013,-616.08,0.00020708,2]
[384673235,1757508657022,-480.0,0.00020708,2]
[384673237,1757508657032,-640.2,0.00020708,2]
[384673239,1757508657041,-1737.06,0.00020708,2]
[384673241,1757508657050,-3730.41,0.00020708,2]
[384673242,1757508657060,-742.16,0.00020708,2]
[384673244,1757508657070,-224.84331499,0.00020708,2]
[384673246,1757508657080,-1629.64,0.00020708,2]
[384673248,1757508657089,-151.0,0.0002074,2]
[384673250,1757508657099,-151.0,0.0002074,2]
[384673252,1757508657108,-151.0,0.0002074,2]
[384673254,1757508657117,-151.0,0.0002074,2]
[384673256,1757508657126,-151.0,0.0002074,2]
[384673258,1757508657135,-151.0,0.0002074,2]
[384673259,1757508657144,-151.0,0.0002074,2]
[384673261,1757508657154,-151.0,0.0002074,2]
[384673263,1757508657163,-151.0,0.0002074,2]
[384673265,1757508657173,-12527.65291967,0.00020755,2]
[384673267,1757508657183,-4032.0,0.00020755,2]
[384673269,1757508657193,-2153.0,0.00020755,2]
[384673271,1757508657202,-633.0,0.00020755,2]
[384673272,1757508657211,-565.88,0.00020769,2]
[384673274,1757508657220,-486.54,0.00020769,2]
[384673276,1757508657230,-500.94,0.00020769,2]
[384673278,1757508657239,-1236.29,0.00020769,2]
[384673280,1757508657248,-500.0,0.00020771,2]
[384673282,1757508657257,-1.76337794,0.00020812,2]
[384673340,1757508657898,977.79450505,0.00013378,2]
[384674106,1757508666039,977.79450505,0.00013378,2]
[384675662,1757508682012,977.79450505,0.00013378,2]
[384676563,1757508690986,977.79450505,0.00013378,2]
[384678189,1757508707689,977.79450505,0.00013378,2]
[384678992,1757508716914,977.79450505,0.00013378,2]
[384680485,1757508733198,864.0,0.00018901,20]
[384680491,1757508733251,977.79450505,0.00013378,2]
[384680978,1757508741810,977.79450505,0.00013378,2]
[384681143,1757508757591,977.79450505,0.00013378,2]
[384681144,1757508767391,977.79450505,0.00013378,2]
[384681145,1757508770988,-977.79450505,0.00013513,2]
[384681146,1757508771017,-796.8751245,0.00014914,2]
[384681147,1757508771047,-1200.0,0.00015014,2]
[384681148,1757508771194,-466.15979108,0.00015015,2]
[384681149,1757508771226,-480.0,0.00015015,2]
[384681150,1757508771255,-480.0,0.00015015,2]
[384681151,1757508771284,-480.0,0.00015015,2]
[384681152,1757508771407,-300.0,0.00015015,2]
[384681153,1757508771436,-480.0,0.00015015,2]
[384681154,1757508771465,-480.0,0.00015015,2]
[384681155,1757508771493,-480.0,0.00015015,2]
[384681156,1757508771522,-480.0,0.00015015,2]
[384681157,1757508771553,-480.0,0.00015016,2]
[384681158,1757508771582,-480.0,0.00015016,2]
[384681159,1757508771611,-480.0,0.00015016,2]
[384681160,1757508771642,-932.6,0.00015016,2]
[384681161,1757508771671,-334.81,0.00015016,2]
[384681162,1757508771740,-145.19,0.00015016,2]
[384681163,1757508771770,-480.0,0.00015016,2]
[384681164,1757508771802,-480.0,0.00015016,2]
[384681165,1757508771832,-480.0,0.00015016,2]
[384681166,1757508771860,-478.99032299,0.00015016,2]
[384681167,1757508771891,-480.0,0.00015016,2]
[384681168,1757508771919,-796.8751245,0.00015217,2]
[384681169,1757508771947,-330.94592823,0.00015289,2]
[384681170,1757508771976,-489.66558419,0.0001529,2]
[384681171,1757508772005,-480.0,0.0001529,2]
[384681172,1757508772037,-236.67608018,0.0001529,2]
[384681173,1757508772126,-243.32391982,0.0001529,2]
[384681174,1757508772159,-932.6,0.0001529,2]
[384681175,1757508772190,-480.0,0.0001529,2]
[384681176,1757508772220,-480.0,0.0001529,2]
[384681177,1757508772251,-480.0,0.0001529,2]
[384681178,1757508772280,-480.0,0.0001529,2]
[384681179,1757508772313,-480.0,0.0001529,2]
[384681180,1757508772344,-300.0,0.00015315,2]
[384681181,1757508772376,-300.0,0.00015315,2]
[384681182,1757508772408,-300.0,0.00015315,2]
[384681183,1757508772440,-300.0,0.00015315,2]
[384681184,1757508772472,-148.16216036,0.00015315,2]
[384681185,1757508772657,-151.83783964,0.00015315,2]
[384681186,1757508772689,-300.0,0.00015315,2]
[384681187,1757508772718,-300.0,0.00015315,2]
[384681188,1757508772752,-300.0,0.00015315,2]
[384681189,1757508772784,-300.0,0.00015315,2]
[384681190,1757508772814,-300.0,0.00015315,2]
[384681191,1757508772844,-300.0,0.00015315,2]
[384681192,1757508772874,-300.0,0.00015315,2]
[384681193,1757508772905,-300.0,0.00015315,2]
[384681194,1757508772936,-300.0,0.00015315,2]
[384681195,1757508772966,-300.0,0.00015315,2]
[384681196,1757508772995,-796.8751245,0.0001552,2]
[384681197,1757508773025,-480.0,0.00015564,2]
[384681198,1757508773059,-480.0,0.00015564,2]
[384681199,1757508773243,-932.6,0.00015564,2]
[384681200,1757508773275,-480.0,0.00015564,2]
[384681201,1757508773305,-480.0,0.00015564,2]
[384681202,1757508773335,-480.0,0.00015564,2]
[384681203,1757508773364,-311.00231075,0.00015564,2]
[384681204,1757508773395,-480.0,0.00015564,2]
[384681205,1757508773424,-180.74696391,0.00015573,2]
[384681206,1757508773454,-168.38504862,0.00015573,2]
[384681207,1757508773485,-232.51119286,0.00015573,2]
[384681208,1757508773514,-626.98323714,0.00015573,2]
[384681209,1757508774612,480.0,0.00015016,2]
[384681210,1757508774770,480.0,0.0001529,2]
[384681211,1757508775056,295.55249344,0.00015564,2]
[384681212,1757508775084,184.44750656,0.00015564,2]
[384681213,1757508775132,283.93754192,0.0001552,2]
[384681214,1757508776401,5000.0,0.00015574,2]
[384681215,1757508776804,480.0,0.00015016,2]
[384681216,1757508777082,480.0,0.0001529,2]
[384681217,1757508777420,480.0,0.00015564,2]
[384681218,1757508782236,-3135.97989288,0.00015574,2]
[384681219,1757508782251,-10000.01,0.00015574,2]
[384681220,1757508782356,-10000.01,0.00015574,2]
[384681221,1757508791871,-300.0,0.00015573,2]
[384681222,1757508791903,-4400.01,0.00015574,2]
[384681223,1757508791946,-599.99,0.00015574,2]
[384681224,1757508792038,-10000.01,0.00015574,2]
[384681225,1757508792180,-10000.01,0.00015574,2]
[384681226,1757508792331,-10000.01,0.00015574,2]
[384681227,1757508792468,-10000.01,0.00015574,2]
[384681228,1757508801825,-480.0,0.00015016,2]
[384681229,1757508801855,-480.0,0.00015016,2]
[384681230,1757508801884,-480.0,0.0001529,2]
[384681231,1757508801912,-239.59,0.0001529,2]
[384681232,1757508802005,-6640.83,0.00015418,2]
[384681233,1757508802020,-10000.01,0.00015418,2]
[384681234,1757508802119,-3037.99104607,0.00015418,2]
[384681235,1757508802143,-3924.02790786,0.00015418,2]
[384681236,1757508802271,-480.0,0.00015564,2]
[384681237,1757508802564,960.0,0.00014866,2]
[384681238,1757508810851,5000.0,0.00015574,2]
[384681239,1757508814232,480.0,0.00015563,2]
[384681240,1757508816185,161.725753,0.00015347,2]
[384681241,1757508816629,161.725753,0.00015347,120]
[384681242,1757508819889,177.62,0.00015016,2]
[384681243,1757508827012,2229.35354573,0.00015574,2]
[384681244,1757508828995,31.31070127,0.00015016,2]
[384681245,1757508829021,448.68929873,0.00015016,2]
[384681246,1757508829589,480.0,0.0001529,2]
[384681247,1757508829843,480.0,0.00015564,2]
[384681248,1757508831265,480.0,0.00015015,2]
[384681249,1757508832109,816.03,0.00015016,2]
[384681250,1757508832384,816.03,0.0001529,2]
[384681251,1757508832635,816.03,0.00015564,2]
[384681252,1757508835156,5000.0,0.00015574,2]
[384681253,1757508836882,-479.99,0.00015574,2]
[384681261,1757509277122,157.69095,0.00027397,120]
[384681262,1757509361086,372.13,0.00027397,120]
[384681263,1757509391149,198.23,0.00027397,120]
[384681264,1757509453033,5000.0,0.00017,7]
[384681266,1757509476303,5000.0,0.00017,7]
[384681276,1757509600623,321.5,0.00027397,120]
[384681278,1757509703183,5000.0,0.00017,7]
[384681354,1757509832772,-393.576915,0.00013562,2]
[384681356,1757509832783,-393.576915,0.00013699,2]
[384681358,1757509832792,-378.528246,0.00014096,2]
[384681360,1757509832801,-235.6765022,0.00014309,2]
[384681362,1757509832813,-22.7216297,0.00014309,2]
[384681364,1757509832822,-666.0,0.00014395,2]
[384681366,1757509832831,-2782.3512688,0.00014532,2]
[384681368,1757509832840,-266.94967685,0.00014564,2]
[384681370,1757509832850,-1200.0,0.00015013,2]
[384681372,1757509832859,-1200.0,0.00015014,2]
[384681374,1757509832868,-300.0,0.00015014,2]
[384681376,1757509832877,-300.0,0.00015014,2]
[384681378,1757509832887,-480.0,0.00015015,2]
[384681380,1757509832897,-480.0,0.00015015,2]
[384681382,1757509832906,-480.0,0.00015015,2]
[384681384,1757509832916,-358.510387,0.00015068,2]
[384681386,1757509832925,-596.399461,0.00015225,2]
[384681388,1757509832935,-480.0,0.00015289,2]
[384681390,1757509832945,-480.0,0.00015289,2]
[384681392,1757509832954,-480.0,0.00015289,2]
[384681394,1757509832963,-1062.4045836,0.00015519,2]
[384681396,1757509832972,-493.08,0.00015562,2]
[384681398,1757509832982,-480.0,0.00015562,2]
[384681400,1757509832991,-480.0,0.00015562,2]
[384681401,1757509832999,-714.02,0.00015562,2]
[384681402,1757509833008,-540.77,0.00015562,2]
[384681403,1757509833017,-480.0,0.00015562,2]
[384681404,1757509833027,-480.0,0.00015562,2]
[384681405,1757509833037,-581.62,0.00015563,2]
[384681406,1757509833047,-480.0,0.00015563,2]
[384681407,1757509833057,-480.0,0.00015563,2]
[384681409,1757509833067,-480.0,0.00015563,2]
[384681411,1757509833076,-2631.86,0.00015563,2]
[384681412,1757509833086,-480.0,0.00015563,2]
[384681413,1757509833096,-480.0,0.00015563,2]
[384681415,1757509833106,-454.39100843,0.00015563,2]
[384681417,1757509833118,-480.0,0.00015563,2]
[384681419,1757509833128,-480.0,0.00015563,2]
[384681420,1757509833137,-480.0,0.00015563,2]
[384681421,1757509833146,-480.0,0.00015563,2]
[384681422,1757509833157,-480.0,0.00015563,2]
[384681423,1757509833167,-480.0,0.00015563,2]
[384681424,1757509833176,-480.0,0.00015563,2]
[384681425,1757509833189,-480.0,0.00015563,2]
[384681426,1757509833199,-480.0,0.00015563,2]
[384681427,1757509833209,-178.45303487,0.00015563,2]
[384681428,1757509833219,-507.47967701,0.00015563,2]
[384681429,1757509833228,-616.10635546,0.00015563,2]
[384681430,1757509833237,-622.00774785,0.00015563,2]
[384681431,1757509833247,-480.0,0.00015563,2]
[384681432,1757509833256,-480.0,0.00015563,2]
[384681433,1757509833266,-213.50739287,0.00015563,2]
[384681434,1757509833276,-500.0,0.00015573,2]
[384681435,1757509833286,-383.32012605,0.00015573,2]
[384681436,1757509833296,-6662.93675938,0.00015573,2]
[384681437,1757509833306,-306863.96010712,0.00015574,2]
[384681438,1757509833316,-480.0,0.00015673,2]
[384681439,1757509833325,-480.0,0.00015673,2]
[384681440,1757509833335,-480.0,0.00015673,2]
[384681441,1757509833345,-480.0,0.00015673,2]
[384681442,1757509833355,-483.10078319,0.00015673,2]
[384681443,1757509833365,-480.0,0.00015673,2]
[384681444,1757509833375,-480.0,0.00015673,2]
[384681445,1757509833385,-480.0,0.00015673,2]
[384681446,1757509833395,-480.0,0.00015673,2]
[384681447,1757509833404,-480.0,0.00015673,2]
[384681448,1757509833414,-482.90221377,0.00015673,2]
[384681449,1757509833423,-480.0,0.00015673,2]
[384681450,1757509833433,-300.0,0.00015725,2]
[384681451,1757509833443,-300.0,0.00015725,2]
[384681452,1757509833452,-300.0,0.00015725,2]
[384681453,1757509833462,-300.0,0.00015725,2]
[384681454,1757509833471,-300.0,0.00015725,2]
[384681455,1757509833481,-300.0,0.00015725,2]
[384681456,1757509833491,-300.0,0.00015725,2]
[384681457,1757509833501,-300.0,0.00015725,2]
[384681458,1757509833511,-300.0,0.00015725,2]
[384681459,1757509833520,-300.0,0.00015725,2]
[384681460,1757509833530,-300.0,0.00015725,2]
[384681461,1757509833539,-300.0,0.00015725,2]
[384681462,1757509833548,-300.0,0.00015725,2]
[384681463,1757509833558,-300.0,0.00015725,2]
[384681464,1757509833568,-300.0,0.00015725,2]
[384681465,1757509833578,-521.98428919,0.00015836,2]
[384681466,1757509833587,-714.02,0.00015836,2]
[384681467,1757509833596,-480.0,0.00015836,2]
[384681468,1757509833606,-480.0,0.00015836,2]
[384681469,1757509833616,-480.0,0.00015837,2]
[384681470,1757509833625,-480.0,0.00015837,2]
[384681471,1757509833635,-2631.86,0.00015837,2]
[384681472,1757509833644,-480.0,0.00015837,2]
[384681473,1757509833653,-480.0,0.00015837,2]
[384681474,1757509833663,-480.0,0.00015837,2]
[384681475,1757509833673,-480.0,0.00015837,2]
[384681476,1757509833683,-480.0,0.00015837,2]
[384681477,1757509833692,-480.0,0.00015837,2]
[384681478,1757509833702,-480.0,0.00015837,2]
[384681479,1757509833711,-480.0,0.00015837,2]
[384681480,1757509833721,-600.0,0.00015884,2]
[384681481,1757509833730,-274.91136944,0.00015947,2]
[384681482,1757509833740,-480.0,0.00015947,2]
[384681483,1757509833750,-480.0,0.00015947,2]
[384681484,1757509833759,-480.0,0.00015947,2]
[384681485,1757509833771,-714.02,0.0001611,2]
[384681486,1757509833780,-480.0,0.0001611,2]
[384681487,1757509833790,-480.0,0.0001611,2]
[384681488,1757509833800,-480.0,0.00016111,2]
[384681489,1757509833809,-2631.86,0.00016111,2]
[384681490,1757509833818,-480.0,0.00016111,2]
[384681491,1757509833828,-480.0,0.00016111,2]
[384681492,1757509833837,-480.0,0.00016111,2]
[384681493,1757509833846,-480.0,0.00016111,2]
[384681494,1757509833855,-480.0,0.00016111,2]
[384681495,1757509833864,-480.0,0.00016111,2]
[384681496,1757509833873,-480.0,0.00016111,2]
[384681497,1757509833882,-480.0,0.00016221,2]
[384681498,1757509833891,-160.0,0.00016371,2]
[384681499,1757509833900,-714.02,0.00016384,2]
[384681500,1757509833909,-480.0,0.00016384,2]
[384681501,1757509833918,-480.0,0.00016384,2]
[384681502,1757509833927,-480.0,0.00016385,2]
[384681503,1757509833937,-2631.86,0.00016385,2]
[384681504,1757509833946,-480.0,0.00016385,2]
[384681505,1757509833955,-327.94557837,0.00016385,2]
[384681506,1757509833965,-480.0,0.00016385,2]
[384681507,1757509833974,-480.0,0.00016385,2]
[384681508,1757509833982,-480.0,0.00016385,2]
[384681509,1757509833991,-480.0,0.00016385,2]
[384681510,1757509834000,-480.0,0.00016385,2]
[384681511,1757509834010,-203.0,0.00016432,2]
[384681512,1757509834019,-420.0,0.00016432,2]
[384681513,1757509834028,-150.0,0.00016438,2]
[384681514,1757509834037,-203.3243414,0.00016438,5]
[384681515,1757509834046,-520.0,0.00016438,3]
[384681516,1757509834056,-520.0,0.00016438,3]
[384681517,1757509834065,-520.0,0.00016438,3]
[384681518,1757509834074,-520.0,0.00016495,3]
[384681519,1757509834084,-480.0,0.00016495,2]
[384681520,1757509834094,-217.67150996,0.00016515,2]
[384681521,1757509834104,-846.88337432,0.00016515,2]
[384681522,1757509834116,-233.08191698,0.00016515,2]
[384681523,1757509834125,-203.30414021,0.00016515,2]
[384681524,1757509834134,-714.02,0.00016658,2]
[384681525,1757509834143,-480.0,0.00016658,2]
[384681526,1757509834153,-552.6039254,0.00016658,2]
[384681527,1757509834162,-480.0,0.00016659,2]
[384681528,1757509834172,-2631.86,0.00016659,2]
[384681529,1757509834183,-336.59,0.00016659,2]
[384681530,1757509834192,-481.25,0.00016659,2]
[384681531,1757509834201,-480.0,0.00016659,2]
[384681532,1757509834210,-480.0,0.00016659,2]
[384681533,1757509834220,-480.0,0.00016659,2]
[384681534,1757509834229,-372.86,0.00016659,2]
[384681535,1757509834238,-485.30819344,0.00016769,3]
[384681536,1757509834247,-480.0,0.00016769,2]
[384681537,1757509834256,-260.0,0.00016919,2]
[384681538,1757509834266,-714.02,0.00016932,2]
[384681539,1757509834275,-480.0,0.00016932,2]
[384681540,1757509834284,-480.0,0.00016933,2]
[384681541,1757509834294,-2631.86,0.00016933,2]
[384681542,1757509834303,-480.0,0.00016933,2]
[384681543,1757509834312,-613.05,0.00016933,2]
[384681544,1757509834321,-480.0,0.00016933,2]
[384681545,1757509834330,-480.0,0.00017043,2]
[384681546,1757509834339,-714.02,0.00017206,2]
[384681547,1757509834348,-480.0,0.00017206,2]
[384681548,1757509834358,-480.0,0.00017207,2]
[384681549,1757509834367,-2631.86,0.00017207,2]
[384681550,1757509834376,-480.0,0.00017207,2]
[384681551,1757509834385,-480.0,0.00017207,2]
[384681552,1757509834395,-480.0,0.00017317,2]
[384681553,1757509834405,-360.0,0.00017467,2]
[384681554,1757509834415,-720.0,0.00017473,2]
[384681555,1757509834424,-714.02,0.0001748,2]
[384681556,1757509834434,-480.0,0.0001748,2]
[384681557,1757509834544,-480.0,0.00017481,2]
[384681558,1757509834555,-2631.86,0.00017481,2]
[384681559,1757509834564,-480.0,0.00017481,2]
[384681560,1757509834574,-480.0,0.00017481,2]
[384681561,1757509834583,-480.0,0.00017591,2]
[384681562,1757509834593,-714.02,0.00017754,2]
[384681563,1757509834603,-480.0,0.00017754,2]
[384681564,1757509834612,-480.0,0.00017755,2]
[384681565,1757509834622,-2631.86,0.00017755,2]
[384681566,1757509834631,-480.0,0.00017755,2]
[384681567,1757509834640,-480.0,0.00017755,2]
[384681568,1757509834650,-480.0,0.00017865,2]
[384681569,1757509834659,-587.0,0.00017983,2]
[384681570,1757509834669,-156.292349,0.00018,2]
[384681571,1757509834678,-460.0,0.00018015,2]
[384681572,1757509834688,-714.02,0.00018028,2]
[384681573,1757509834698,-480.0,0.00018028,2]
[384681574,1757509834708,-480.0,0.00018029,2]
[384681575,1757509834718,-2631.86,0.00018029,2]
[384681576,1757509834727,-480.0,0.00018029,2]
[384681577,1757509834738,-480.0,0.00018029,2]
[384681578,1757509834748,-480.0,0.00018139,2]
[384681579,1757509834757,-714.02,0.00018302,2]
[384681580,1757509834766,-480.0,0.00018302,2]
[384681581,1757509834776,-480.0,0.00018303,2]
[384681582,1757509834785,-2631.86,0.00018303,2]
[384681583,1757509834794,-480.0,0.00018303,2]
[384681584,1757509834804,-480.0,0.00018303,2]
[384681585,1757509834813,-480.0,0.00018413,2]
[384681586,1757509834822,-358.510387,0.00018493,2]
[384681587,1757509834831,-560.0,0.00018563,2]
[384681588,1757509834840,-714.02,0.00018576,2]
[384681589,1757509834849,-480.0,0.00018576,2]
[384681590,1757509834858,-480.0,0.00018577,2]
[384681591,1757509834878,-2631.86,0.00018577,2]
[384681592,1757509834889,-480.0,0.00018577,2]
[384681593,1757509834899,-480.0,0.00018577,2]
[384681594,1757509834910,-629.00887718,0.00018684,2]
[384681595,1757509834920,-2516.03550872,0.00018684,2]
[384681596,1757509834930,-5655.41881473,0.00018684,2]
[384681597,1757509834940,-670.5294682,0.00018684,2]
[384681598,1757509834950,-2682.11787281,0.00018684,2]
[384681599,1757509834959,-6028.73044862,0.00018684,2]
[384681600,1757509834969,-480.0,0.00018687,2]
[384681601,1757509834979,-714.02,0.0001885,2]
[384681602,1757509834988,-480.0,0.0001885,2]
[384681603,1757509834997,-480.0,0.00018851,2]
[384681604,1757509835008,-2631.86,0.00018851,2]
[384681605,1757509835018,-480.0,0.00018851,2]
[384681606,1757509835028,-480.09,0.00018851,2]
[384681607,1757509835038,-480.0,0.00018961,2]
[384681608,1757509835047,-660.0,0.00019111,2]
[384681609,1757509835057,-714.02,0.00019124,2]
[384681610,1757509835066,-480.0,0.00019124,2]
[384681611,1757509835076,-480.0,0.00019125,2]
[384681612,1757509835086,-2631.86,0.00019125,2]
[384681613,1757509835095,-480.0,0.00019125,2]
[384681614,1757509835107,-864.0,0.0001922,20]